Cogmind - Beta 14 *** ADVENTURER MODE // 2024.10.06 @ 09:15:29 // Winter2019/RPGLIKE Player: Noname Result: Escaped! Performance ------------- Evolutions (9) 4500 Regions Visited (28) 5600 Robots Destroyed (265) 1325 Value Destroyed (14553) 14553 Prototype IDs (59) 1180 Alien Tech Used (1) 200 Bonus (7690) 7690 TOTAL SCORE: 35048 Bonus ------- High Alert Combat Kills 418 Follower Combat Kills 1812 Awakened Behemoth Slayer 1000 Network Hubs Disabled 400 Met Data Miner 300 Met Imprinter 300 Met Zhirov 300 A7 Reached Mainframe 300 Win 3000 Friendly Fire -140 Cogmind --------- Core Integrity 1082/1100 Matter 300/300 Energy 846/850 System Corruption 0% Temperature Cool (8) Movement Hovering (107) Ox1 Location To Epsilon Eridani Parts ------- > --- POWER (3) -------- Quantum Reactor Reinforced Quantum Reactor Reinforced Quantum Reactor > --- PROPULSION (6) --- Improved Gyrokinetic Inverter Combat Antigrav System Antigrav Array Antigrav Array > --- UTILITY (11) ----- Long-range Sensor Array Advanced Signal Interpreter 0b10 Decoder Chip [Skirmisher] Advanced Target Analyzer Experimental Core Analyzer Experimental Armor Integrity Analyzer Advanced Transmission Jammer Advanced Reaction Control System Advanced Phase Shifter Improved Powered Armor Experimental System Shield > --- WEAPON (5) ------- Vibroblade Centrium Greatsword Enhanced Force Lance CR-A16's Behemoth Slayer > --- INVENTORY (7) ---- Nanoactuators Advanced Force Booster Graphene Brace Advanced Hardlight Generator Advanced Force Field Dynamic Insulation System Improved System Restoration Module Peak State ------------ > --- POWER ------------ Quantum Reactor Reinforced Quantum Reactor Reinforced Quantum Reactor > --- PROPULSION ------- Improved Gyrokinetic Inverter Combat Antigrav System Antigrav Array Antigrav Array > --- UTILITY ---------- Long-range Sensor Array Advanced Signal Interpreter 0b10 Decoder Chip [Skirmisher] Advanced Target Analyzer Experimental Core Analyzer Experimental Armor Integrity Analyzer Advanced Transmission Jammer Advanced Reaction Control System Advanced Phase Shifter Improved Powered Armor Experimental System Shield > --- WEAPON ----------- Vibroblade Centrium Greatsword Enhanced Force Lance CR-A16's Behemoth Slayer > --- INVENTORY -------- Nanoactuators Advanced Force Booster Graphene Brace Advanced Hardlight Generator Advanced Force Field Dynamic Insulation System [Rating: 200] Favorites ----------- Power Quantum Reactor Engine Ion Engine Power Core Light Neutrino Core Reactor Quantum Reactor Propulsion Antigrav System Treads Light Treads Leg Carbon-fiber Leg Wheel Armored Huge Wheel Hover Unit Antigrav System Flight Unit Xenon Bombardment Thruster Utility Advanced Signal Interpreter Device Microactuators Processor Advanced Signal Interpreter Hackware Experimental System Shield Protection Improved Powered Armor Weapon Power Sword Ballistic Gun Assault Rifle Launcher Improved Grenade Launcher Impact Weapon Power Maul Slashing Weapon Power Sword Piercing Weapon CR-A16's Behemoth Slayer Build | -11 -10 -10 -10 -9 -8 -7 -7 -7 -7 -6 -6 -6 -6 -6 -5 -5 -5 -5 -5 -5 -4 -4 -4 -4 -3 -3 -2 -1 ------- Run | Yrd Mat Min Exi Min Mat Fac Low Low Dat Pro Fac Low Low Zio Pro Fac Ext Cet Arc Hub Fac Upp Upp Zhi Pro Res Res Acc Slots Evolved 21 | 5 . . . 1 3 2 . . . 2 2 . . 1 1 1 . . . . 1 . . . . . 1 1 Power 2 | . . . . . . . . . . . 1 . . . . . . . . . . . . . . . . 1 Propulsion 5 | 1 . . . . . . . . . 2 . . . . . 1 . . . . 1 . . . . . . . Utility 10 | 3 . . . 1 3 1 . . . . . . . . 1 . . . . . . . . . . . 1 . Weapon 4 | 1 . . . . . 1 . . . . 1 . . 1 . . . . . . . . . . . . . . Parts Attached 242 | 4 6 1 5 . 15 22 . 6 1 4 25 . 4 14 6 22 13 2 . 1 13 . 1 6 . 8 25 38 Power 27 | . . . . . . 3 . 1 . 1 6 . . . . 1 5 2 . . . . . . . . 5 3 Engine 6 | . . . . . . 2 . 1 . 1 2 . . . . . . . . . . . . . . . . . Core 9 | . . . . . . 1 . . . . 2 . . . . 1 5 . . . . . . . . . . . Reactor 12 | . . . . . . . . . . . 2 . . . . . . 2 . . . . . . . . 5 3 Propulsion 32 | 2 . . 2 . 2 5 . . . 1 . . . . . 9 3 . . . 1 . . 3 . 1 3 . Treads 2 | 2 . . . . . . . . . . . . . . . . . . . . . . . . . . . . Leg 2 | . . . 2 . . . . . . . . . . . . . . . . . . . . . . . . . Wheel 3 | . . . . . . 2 . . . 1 . . . . . . . . . . . . . . . . . . Hover 18 | . . . . . . . . . . . . . . . . 7 3 . . . 1 . . 3 . 1 3 . Flight 7 | . . . . . 2 3 . . . . . . . . . 2 . . . . . . . . . . . . Utility 154 | . 5 1 1 . 11 7 . 4 1 2 15 . 2 13 4 12 4 . . 1 12 . 1 3 . 6 14 35 Device 126 | . 3 1 1 . 7 5 . 4 1 1 13 . 2 5 2 11 3 . . 1 12 . 1 3 . 6 13 31 Storage . | . . . . . . . . . . . . . . . . . . . . . . . . . . . . . Processor 13 | . . . . . 2 1 . . . . 1 . . 6 . . . . . . . . . . . . 1 2 Hackware 1 | . . . . . . . . . . . . . . 1 . . . . . . . . . . . . . . Protection 14 | . 2 . . . 2 1 . . . 1 1 . . 1 2 1 1 . . . . . . . . . . 2 Artifact . | . . . . . . . . . . . . . . . . . . . . . . . . . . . . . Weapon 29 | 2 1 . 2 . 2 7 . 1 . . 4 . 2 1 2 . 1 . . . . . . . . 1 3 . Energy Gun . | . . . . . . . . . . . . . . . . . . . . . . . . . . . . . Energy Cannon . | . . . . . . . . . . . . . . . . . . . . . . . . . . . . . Ballistic Gun 3 | 2 1 . . . . . . . . . . . . . . . . . . . . . . . . . . . Ballistic Cannon . | . . . . . . . . . . . . . . . . . . . . . . . . . . . . . Launcher 5 | . . . . . 1 1 . . . . . . 1 . 1 . . . . . . . . . . . 1 . Special Weapon . | . . . . . . . . . . . . . . . . . . . . . . . . . . . . . Impact Weapon 3 | . . . . . . 3 . . . . . . . . . . . . . . . . . . . . . . Slashing Weapon 13 | . . . 1 . . 3 . 1 . . 4 . 1 . . . 1 . . . . . . . . . 2 . Piercing Weapon 5 | . . . 1 . 1 . . . . . . . . 1 1 . . . . . . . . . . 1 . . Special Melee Weapon . | . . . . . . . . . . . . . . . . . . . . . . . . . . . . . Unidentified Prototypes 22 | . . . . . . 3 . . . . 1 . . 5 . 1 . . . . 2 . . 3 . 1 5 1 Parts Lost . | . . . . . . . . . . . . . . . . . . . . . . . . . . . . . Power . | . . . . . . . . . . . . . . . . . . . . . . . . . . . . . Propulsion . | . . . . . . . . . . . . . . . . . . . . . . . . . . . . . Utility . | . . . . . . . . . . . . . . . . . . . . . . . . . . . . . Weapon . | . . . . . . . . . . . . . . . . . . . . . . . . . . . . . Highest Loss Streak . | . . . . . . . . . . . . . . . . . . . . . . . . . . . . . To Critical Strikes . | . . . . . . . . . . . . . . . . . . . . . . . . . . . . . Average Slot Usage (%) 91 | . 90 99 99 99 93 95 93 93 93 89 84 84 84 84 84 93 94 95 95 95 95 95 95 94 95 95 89 87 Engine 2 | . 11 11 11 10 7 2 6 6 6 5 5 . . . . . . . . . . . . . . . . . Core 1 | . . . . . . 3 . . . . 1 . . . . 1 7 1 . . . . . . . . . . Reactor 4 | . . . . . . . . . . . 2 10 10 10 9 6 . 7 9 9 8 8 8 8 8 8 7 10 Wheel 3 | . . . . . . 2 6 6 6 9 10 10 10 10 9 . . . . . . . . . . . . . Hover 8 | . . . . . . . . . . . . . . . . 16 21 22 22 22 24 26 26 26 26 26 20 16 Flight 1 | . . . . . 11 6 . . . . . . . . . 2 . . . . . . . . . . . . Device 27 | . 17 21 25 32 37 46 46 46 46 42 36 31 31 24 18 18 17 18 18 18 17 17 17 16 17 17 16 17 Processor 12 | . . . . . 7 6 6 6 6 5 6 10 10 15 19 18 18 18 18 18 17 17 17 17 17 17 17 18 Hackware 2 | . . . . . . . . . . . . . . 2 4 4 4 4 4 4 4 4 4 4 4 4 4 4 Protection 5 | . 17 22 18 10 7 5 6 6 6 5 5 5 5 2 2 4 4 4 4 4 4 4 4 4 4 4 4 3 Ballistic Gun 1 | . 22 22 16 . . . . . . . . . . . . . . . . . . . . . . . . . Slashing Weapon 11 | . . . 2 10 7 7 13 13 13 11 14 15 14 15 14 13 13 13 13 13 13 13 13 13 13 12 8 8 Piercing Weapon 3 | . . . 2 10 6 5 . . . . . . . 4 4 4 4 4 4 4 4 4 4 4 4 4 8 8 Peak Build Rating 200 | 5 11 11 27 27 48 62 61 64 65 72 94 94 98 117 124 141 143 147 147 147 156 156 156 159 159 167 192 200 Average Rating 110 | 4 8 10 17 27 40 56 61 61 64 68 86 94 96 107 118 136 142 146 147 146 151 156 156 156 159 160 176 195 On Entrance 98 | 3 5 11 11 27 27 44 61 61 64 65 72 94 94 97 114 124 141 142 147 147 146 156 156 156 159 159 167 192 Naked Turns . | . . . . . . . . . . . . . . . . . . . . . . . . . . . . . Heaviest Build 123 | 8 15 15 15 13 28 40 40 44 43 40 57 54 64 62 58 64 67 78 78 78 77 73 73 72 72 77 105 123 Greatest Support 100 | 40 40 40 40 30 30 33 33 33 33 61 61 61 61 61 61 61 60 65 65 65 76 76 76 76 76 81 95 100 Greatest Overweight (x) 3 | . . . . . 2 3 1 1 1 1 . . 1 1 . 3 1 1 1 1 1 . . . . . 3 1 Average Overweight (x) . | . . . . . . 1 1 1 1 . . . . . . . . . 1 1 . . . . . . . 1 Largest Inventory Capacity 7 | 1 1 1 2 3 4 5 5 6 6 6 6 6 6 6 6 6 6 6 6 6 6 6 6 6 6 7 7 7 Average Capacity 5 | . 1 1 1 2 3 4 5 5 6 6 6 6 6 6 6 6 6 6 6 6 6 6 6 6 6 6 7 7 Most Carried 7 | 1 1 1 2 3 4 5 5 6 6 6 6 6 6 6 6 6 6 6 6 6 6 6 6 6 6 7 7 7 Average Carried 5 | . 1 1 1 2 3 4 5 5 6 5 5 6 6 5 5 5 5 6 6 6 6 6 6 6 6 6 6 6 Final Capacity 7 | 1 1 1 2 3 4 5 5 6 6 6 6 6 6 6 6 6 6 6 6 6 6 6 6 6 6 7 7 7 Final Carried 7 | 1 1 1 2 3 4 5 5 6 6 6 6 6 6 6 6 6 6 6 6 6 6 6 6 6 6 7 7 7 Class Distribution -------------------- 59% | Hacker-Gladiator 11% | Wizard-Gladiator 11% | Gladiator 10% | Hacker-Ninja 5% | Mutant Dominant Class ---------------- Mutant | -10/Materials Mutant | -10/Mines Mutant | -10/Exiles Gladiator | -9/Mines Gladiator | -8/Materials Gladiator | -7/Factory Hacker-Gladiator | -7/Lower Caves Hacker-Gladiator | -7/Lower Caves Hacker-Gladiator | -7/Data Miner Hacker-Gladiator | -6/Proximity Caves Hacker-Gladiator | -6/Factory Hacker-Gladiator | -6/Lower Caves Hacker-Gladiator | -6/Lower Caves Hacker-Gladiator | -6/Zion Hacker-Gladiator | -5/Proximity Caves Hacker-Gladiator | -5/Factory Hacker-Gladiator | -5/Extension Hacker-Gladiator | -5/Cetus Hacker-Gladiator | -5/Archives Hacker-Gladiator | -5/Hub_04(d) Hacker-Gladiator | -4/Factory Hacker-Ninja | -4/Upper Caves Hacker-Gladiator | -4/Upper Caves Hacker-Gladiator | -4/Zhirov Hacker-Gladiator | -3/Proximity Caves Hacker-Gladiator | -3/Research Hacker-Gladiator | -2/Research Wizard-Gladiator | -1/Access Resources | -11 -10 -10 -10 -9 -8 -7 -7 -7 -7 -6 -6 -6 -6 -6 -5 -5 -5 -5 -5 -5 -4 -4 -4 -4 -3 -3 -2 -1 ----------- Run | Yrd Mat Min Exi Min Mat Fac Low Low Dat Pro Fac Low Low Zio Pro Fac Ext Cet Arc Hub Fac Upp Upp Zhi Pro Res Res Acc Matter Collected 2981 | 240 146 . 40 30 194 226 7 60 . 50 301 . 20 144 176 220 130 20 . 10 130 . 10 70 . 70 256 431 Remotely . | . . . . . . . . . . . . . . . . . . . . . . . . . . . . . Salvage Created 12710 | . 242 . . 21 889 568 185 431 . 300 318 102 94 . 300 948 1411 28 . 237 638 190 207 112 140 661 1205 3483 Parts 744 | . 12 . . . 62 50 15 22 . 11 35 2 10 . 25 72 66 9 . 15 36 8 17 3 5 37 52 180 Haulers Intercepted . | . . . . . . . . . . . . . . . . . . . . . . . . . . . . . Recyclers Shooed 1 | . . . . . . 1 . . . . . . . . . . . . . . . . . . . . . . Parts Field Recycled . | . . . . . . . . . . . . . . . . . . . . . . . . . . . . . Retrieved Matter . | . . . . . . . . . . . . . . . . . . . . . . . . . . . . . Parts Self-Destructed 124 | . . . . . . . 15 22 . 15 . 6 10 . 19 . . . . . . 8 17 3 9 . . . Prevented 1 | . . . . . . . . . . 1 . . . . . . . . . . . . . . . . . . Kills | -11 -10 -10 -10 -9 -8 -7 -7 -7 -7 -6 -6 -6 -6 -6 -5 -5 -5 -5 -5 -5 -4 -4 -4 -4 -3 -3 -2 -1 ------- Run | Yrd Mat Min Exi Min Mat Fac Low Low Dat Pro Fac Low Low Zio Pro Fac Ext Cet Arc Hub Fac Upp Upp Zhi Pro Res Res Acc Combat Hostiles Destroyed 231 | . 6 . . 2 19 17 8 8 . 7 10 1 6 . 10 20 24 3 . 4 10 4 7 . 2 6 15 42 Melee 209 | . . . . 2 16 16 8 7 . 7 10 1 5 . 4 20 22 3 . 4 10 4 7 . 2 5 15 41 Guns 6 | . 6 . . . . . . . . . . . . . . . . . . . . . . . . . . . AOE 9 | . . . . . 3 . . . . . . . 1 . 5 . . . . . . . . . . . . . Classes Destroyed 15 | . 2 . . . 4 3 . . . . . 1 . . 3 . 2 . . . . . . . . . . . Worker 1 | . . . . . 1 . . . . . . . . . . . . . . . . . . . . . . . Recycler 1 | . . . . . . . . . . . . . . . . . 1 . . . . . . . . . . . Minesweeper 1 | . . . . . . . . . . . . . . . 1 . . . . . . . . . . . . . Operator 2 | . . . . . . . . . . . . . . . . . 1 . . . . . . . . . 1 . Drone 2 | . . . . . . . . . . . . . . . 1 . . . . . . . . . 1 . . . Watcher 28 | . . . . . 2 4 . . . . 1 . . . . 5 2 1 . 1 1 . . . . 4 2 5 Swarmer 35 | . 3 . . 1 1 . 4 . . 1 2 . 4 . 5 6 2 . . . . 4 . . . 2 . . Grunt 72 | . 3 . . 1 10 7 3 4 . 2 1 . 1 . . 4 10 . . 3 4 . 5 . . . . 14 Brawler 6 | . . . . . 2 1 1 . . 1 . . . . . . . . . . . . 1 . . . . . Duelist 4 | . . . . . . 1 . 1 . 2 . . . . . . . . . . . . . . . . . . Sentry 38 | . . . . . 6 3 . 1 . 1 2 . 1 . 1 3 5 . . 1 3 . 1 . 1 3 5 1 Hunter 18 | . . . . . . 2 . . . . . . . . 2 1 3 . . . . . . . . . 4 6 Programmer 46 | . . . . . . 3 . 2 . . 5 . . . . 6 1 . . . 3 . . . . . 6 20 Behemoth 5 | . . . . . . . . . . . . . . . 1 . 2 . . . . . . . . 1 . 1 Cetus Guard 3 | . . . . . . . . . . . . . . . . . . 3 . . . . . . . . . . Wasp 1 | . . . . . . . . . . . . . . . 1 . . . . . . . . . . . . . Thug 1 | . . . . . . . . . . . . . . . . . 1 . . . . . . . . . . . Mutant 1 | . . . . . . . . . . . . 1 . . . . . . . . . . . . . . . . Best Kill Streak 9 | . 3 . . 1 9 4 3 3 . 4 3 1 3 . 5 4 5 4 . 2 3 4 2 . 1 3 5 5 Combat Bots Only 8 | . 3 . . 1 8 4 3 3 . 4 2 1 3 . 5 4 5 3 . 2 3 4 2 . 1 2 4 5 Max Kills in Single Turn 6 | . 1 . . 1 2 1 1 1 . 1 1 1 1 . 6 1 2 2 . 1 1 1 1 . 1 1 1 1 Gunslinging . | . . . . . . . . . . . . . . . . . . . . . . . . . . . . . Exploded 5 | . . . . . 1 . . . . . . . 1 . 5 . . . . . . . . . . . . . Melee 2 | . . . . 1 1 1 1 1 . 1 1 1 1 . 1 1 2 2 . 1 1 1 1 . 1 1 1 1 Uniques/NPCs Destroyed . | . . . . . . . . . . . . . . . . . . . . . . . . . . . . . Combat | -11 -10 -10 -10 -9 -8 -7 -7 -7 -7 -6 -6 -6 -6 -6 -5 -5 -5 -5 -5 -5 -4 -4 -4 -4 -3 -3 -2 -1 -------- Run | Yrd Mat Min Exi Min Mat Fac Low Low Dat Pro Fac Low Low Zio Pro Fac Ext Cet Arc Hub Fac Upp Upp Zhi Pro Res Res Acc Hostile Shots Fired 1219 | . 33 . . 21 93 128 27 25 28 23 48 3 52 . 21 76 116 17 16 17 30 9 25 . . 23 62 326 Missed 403 | . 4 . . 4 24 42 4 8 10 7 17 . 22 . 7 25 36 3 7 7 7 2 11 . . 8 20 128 Damage Taken 10537 | . 197 . . 116 831 902 266 211 562 303 190 19 193 . 200 652 854 195 124 187 322 60 257 . . 228 617 3051 Core 6934 | . 135 . . 88 565 629 174 128 364 224 122 14 122 . 152 449 531 145 74 110 202 41 175 . . 130 399 1961 Absorbed by Shields 807 | . . . . . . 22 . 18 54 . 37 . . . 21 243 294 71 47 . . . . . . . . . Redirected to Core 5977 | . 123 . . 54 450 543 139 102 327 175 87 7 112 . 139 364 492 133 74 81 149 34 175 . . 113 336 1768 Ignored by Resistances 5295 | . 64 . . 39 233 265 114 78 216 104 136 13 118 . 123 390 633 151 109 116 188 46 133 . . 163 298 1565 Regen/Repaired (Parts) 406 | . . . . . . 152 . . . . . . . . . 38 . . . . . . . . . . . 216 Core Remaining (%) 97 | 100 . . . 100 99 . . . . 93 . . . . 100 . . . . 100 . . . . 100 100 87 98 Volleys Fired 23 | . 16 . . . 4 1 . . . . . . 1 . 1 . . . . . . . . . . . . . Largest 2 | . 2 . . . 1 1 . . . . . . 1 . 1 . . . . . . . . . . . . . Hottest 50 | . 40 . . . 33 36 . . . . . . 50 . 50 . . . . . . . . . . . . . Shots Fired 39 | . 32 . . . 4 1 . . . . . . 1 . 1 . . . . . . . . . . . . . Gun 32 | . 32 . . . . . . . . . . . . . . . . . . . . . . . . . . . Cannon . | . . . . . . . . . . . . . . . . . . . . . . . . . . . . . Launcher 7 | . . . . . 4 1 . . . . . . 1 . 1 . . . . . . . . . . . . . Special . | . . . . . . . . . . . . . . . . . . . . . . . . . . . . . Kinetic 32 | . 32 . . . . . . . . . . . . . . . . . . . . . . . . . . . Thermal . | . . . . . . . . . . . . . . . . . . . . . . . . . . . . . Explosive 7 | . . . . . 4 1 . . . . . . 1 . 1 . . . . . . . . . . . . . Electromagnetic . | . . . . . . . . . . . . . . . . . . . . . . . . . . . . . Robot Hit Streak 11 | . 11 . . . 1 2 . . . . . . . . 1 . . . . . . . . . . . . . Robot Miss Streak 7 | . 2 . . . 1 . . . . . . . . . 7 . . . . . . . . . . . . . Penetration Max . | . . . . . . . . . . . . . . . . . . . . . . . . . . . . . Secondary Targets 2 | . 2 . . . . . . . . . . . . . . . . . . . . . . . . . . . Max Gunslinging Chain 1 | . 1 . . . . . . . . . . . . . . . . . . . . . . . . . . . Shots Hit Robots 648 | . 25 . . 4 48 59 20 15 6 24 19 1 10 . 16 55 63 11 7 14 32 6 21 4 2 24 51 111 Core Hits 312 | . 10 . . 2 27 25 9 9 1 9 8 1 14 . 15 26 24 5 2 6 14 4 9 3 2 9 22 56 Critical Kills . | . . . . . . . . . . . . . . . . . . . . . . . . . . . . . Critical Parts Destroyed 4 | . . . . . . 1 . 1 . 2 . . . . . . . . . . . . . . . . . . Critical Strikes 109 | . . . . . 5 4 3 2 1 7 2 . 1 . 4 7 17 4 . 2 7 . 7 . . 3 11 22 Smash 4 | . . . . . . 1 . 1 . 2 . . . . . . . . . . . . . . . . . . Sever 80 | . . . . . 1 1 3 1 1 5 2 . 1 . 3 7 15 2 . 2 5 . 5 . . 3 6 17 Impale 25 | . . . . . 4 2 . . . . . . . . 1 . 2 2 . . 2 . 2 . . . 5 5 Melee Attacks 971 | . . . . 7 60 73 22 20 12 28 54 4 13 2 19 93 83 12 7 22 69 11 22 7 3 57 90 181 Impact 19 | . . . . . . 9 2 4 1 3 . . . . . . . . . . . . . . . . . . Slashing 728 | . . . . 7 13 26 20 16 11 25 54 4 13 1 14 82 73 8 5 20 58 9 18 6 3 50 65 127 Piercing 224 | . . . . . 47 38 . . . . . . . 1 5 11 10 4 2 2 11 2 4 1 . 7 25 54 Sneak Attacks 18 | . . . . . 1 2 . . 1 1 . . . . 1 1 6 . . 1 1 . 1 . 1 1 . . Combat Hostiles 11 | . . . . . 1 . . . . 1 . . . . . 1 4 . . . 1 . 1 . 1 1 . . Follow-up Attacks 150 | . . . . . 10 13 2 1 . 5 . . 2 . 4 13 17 5 3 4 8 1 6 . . 7 20 29 Damage Inflicted 36932 | . 303 . . 140 1933 1929 807 522 314 942 1406 89 943 . 1235 3451 4121 561 356 935 2030 443 1314 604 232 1533 3697 7092 Guns 303 | . 303 . . . . . . . . . . . . . . . . . . . . . . . . . . . Cannons . | . . . . . . . . . . . . . . . . . . . . . . . . . . . . . Explosions 1102 | . . . . . 448 37 . . . . . . 203 . 414 . . . . . . . . . . . . . Melee 35527 | . . . . 140 1485 1892 807 522 314 942 1406 89 740 . 821 3451 4121 561 356 935 2030 443 1314 604 232 1533 3697 7092 Ramming . | . . . . . . . . . . . . . . . . . . . . . . . . . . . . . Kinetic 303 | . 303 . . . . . . . . . . . . . . . . . . . . . . . . . . . Thermal . | . . . . . . . . . . . . . . . . . . . . . . . . . . . . . Explosive 1102 | . . . . . 448 37 . . . . . . 203 . 414 . . . . . . . . . . . . . Electromagnetic . | . . . . . . . . . . . . . . . . . . . . . . . . . . . . . Impact 552 | . . . . . . 344 67 56 . 85 . . . . . . . . . . . . . . . . . . Slashing 29894 | . . . . 140 357 703 740 466 314 857 1406 89 740 . 676 3301 3957 445 311 906 1869 443 1171 604 232 1418 3043 5706 Piercing 5081 | . . . . . 1128 845 . . . . . . . . 145 150 164 116 45 29 161 . 143 . . 115 654 1386 Highest Corruption 5 | . . . . . . . . . . . . . . 4 . 1 1 . . . . . . . . . 4 5 Average Corruption 2 | . . . . . . . . . . . . . . 2 . 1 1 . . . . . . . . . 3 2 Corruption Purged 22 | . . . . . . . . . . . . . . 4 . 1 1 . . . . . . . . . 4 12 Corruption Blocked . | . . . . . . . . . . . . . . . . . . . . . . . . . . . . . Effects 33 | . . . . . . . . . . . . . . 1 . 3 . . . . . . . . . . 3 26 Message Errors 11 | . . . . . . . . . . . . . . 1 . 1 . . . . . . . . . . 1 8 Matter Fused 6 | . . . . . . . . . . . . . . . . . . . . . . . . . . . 1 5 Heat Flow Errors 6 | . . . . . . . . . . . . . . . . . . . . . . . . . . . . 6 Energy Discharges 4 | . . . . . . . . . . . . . . . . . . . . . . . . . . . 1 3 Data Loss (minor) 5 | . . . . . . . . . . . . . . . . 2 . . . . . . . . . . . 3 Alerts 1 | . . . . . . . . . . . . . . . . . . . . . . . . . . . . 1 Overload Shots . | . . . . . . . . . . . . . . . . . . . . . . . . . . . . . Overflow Damage 3043 | . . . . 14 50 82 140 56 35 96 134 . 89 . . 323 374 35 . 52 70 93 23 109 . 229 470 569 Projectiles . | . . . . . . . . . . . . . . . . . . . . . . . . . . . . . Explosions 26 | . . . . . 24 . . . . . . . 2 . . . . . . . . . . . . . . . Melee 3017 | . . . . 14 26 82 140 56 35 96 134 . 87 . . 323 374 35 . 52 70 93 23 109 . 229 470 569 Knockbacks 1 | . . . . . . 1 . . . . . . . . . . . . . . . . . . . . . . Impact 1 | . . . . . . 1 . . . . . . . . . . . . . . . . . . . . . . Kinetic . | . . . . . . . . . . . . . . . . . . . . . . . . . . . . . Secondary . | . . . . . . . . . . . . . . . . . . . . . . . . . . . . . Self-Inflicted Damage 63 | . . . . . . 43 . . . . . . 20 . . . . . . . . . . . . . . . Shots 2 | . . . . . . 1 . . . . . . 1 . . . . . . . . . . . . . . . Rammed . | . . . . . . . . . . . . . . . . . . . . . . . . . . . . . Targets Rammed . | . . . . . . . . . . . . . . . . . . . . . . . . . . . . . Kicked . | . . . . . . . . . . . . . . . . . . . . . . . . . . . . . Crushed . | . . . . . . . . . . . . . . . . . . . . . . . . . . . . . Highest Temperature 213 | . . . . . 39 10 14 14 . 11 153 1 9 . . 120 146 15 . . 27 . . . . . . 213 Average Temperature 38 | . . . . . 19 4 4 7 . 11 45 1 6 . . 36 11 7 . . 8 . . . . . . 95 Received Heat Transfer 2634 | . 66 . . 15 540 228 126 81 . 90 52 20 45 . 18 125 408 36 30 54 133 . 54 . . 54 36 423 Siege Activations . | . . . . . . . . . . . . . . . . . . . . . . . . . . . . . Robots Corrupted 3 | . . . . . . 2 . 1 . . . . . . . . . . . . . . . . . . . . Combat Hostiles 2 | . . . . . . 1 . 1 . . . . . . . . . . . . . . . . . . . . Parts Fried 3 | . . . . . . 2 . 1 . . . . . . . . . . . . . . . . . . . . Impact Corruptions 8 | . . . . . . 4 . 2 . 2 . . . . . . . . . . . . . . . . . . Robots Melted . | . . . . . . . . . . . . . . . . . . . . . . . . . . . . . Combat Hostiles . | . . . . . . . . . . . . . . . . . . . . . . . . . . . . . Parts Melted 4 | . . . . . . . 1 . . 1 . . . . 1 . . 1 . . . . . . . . . . Heat Transferred . | . . . . . . . . . . . . . . . . . . . . . . . . . . . . . Parts Sabotaged . | . . . . . . . . . . . . . . . . . . . . . . . . . . . . . Parts Stolen . | . . . . . . . . . . . . . . . . . . . . . . . . . . . . . Parts Stripped . | . . . . . . . . . . . . . . . . . . . . . . . . . . . . . Power Chain Reactions . | . . . . . . . . . . . . . . . . . . . . . . . . . . . . . Alert | -11 -10 -10 -10 -9 -8 -7 -7 -7 -7 -6 -6 -6 -6 -6 -5 -5 -5 -5 -5 -5 -4 -4 -4 -4 -3 -3 -2 -1 ------- Run | Yrd Mat Min Exi Min Mat Fac Low Low Dat Pro Fac Low Low Zio Pro Fac Ext Cet Arc Hub Fac Upp Upp Zhi Pro Res Res Acc Peak Influence 862 | . 181 . . 142 368 246 . . . . 183 . . . . 450 862 541 266 502 332 . . . . 372 251 505 Initial 420 | . . . . . 46 139 . . . . 22 . . . . 311 . 420 182 77 127 . . . . 17 49 78 Average 161 | . 82 . . 78 223 95 . . . . 47 . . . . 255 341 529 222 191 147 . . . . 208 129 188 Maximum Alert Level 3 | . . . . . 1 1 . . . . . . . . . 2 3 2 1 2 1 . . . . 1 1 2 Low Security (%) 66 | 100 100 100 . 100 34 80 . . . . 100 . . . . 29 32 . 38 60 75 . . . . 52 88 51 Level 1 27 | . . . . . 65 19 . . . . . . . . . 65 29 . 61 17 24 . . . . 47 11 43 Level 2 5 | . . . . . . . . . . . . . . . . 4 26 100 . 22 . . . . . . . 5 Level 3 . | . . . . . . . . . . . . . . . . . 11 . . . . . . . . . . . Level 4 . | . . . . . . . . . . . . . . . . . . . . . . . . . . . . . Level 5 . | . . . . . . . . . . . . . . . . . . . . . . . . . . . . . High Security . | . . . . . . . . . . . . . . . . . . . . . . . . . . . . . Max Security . | . . . . . . . . . . . . . . . . . . . . . . . . . . . . . Squads Dispatched 41 | . . 1 . . 3 8 . . . . 5 . . . . 4 5 . . 3 2 . . . . . 2 8 Investigation 7 | . . . . . 1 3 . . . . . . . . . . 1 . . 2 . . . . . . . . Extermination 20 | . . . . . . 3 . . . . 4 . . . . 4 . . . . 2 . . . . . 2 5 Reinforcement 10 | . . . . . 2 1 . . . . 1 . . . . . 3 . . . . . . . . . . 3 Assault 4 | . . 1 . . . 1 . . . . . . . . . . 1 . . 1 . . . . . . . . Garrison . | . . . . . . . . . . . . . . . . . . . . . . . . . . . . . Intercept . | . . . . . . . . . . . . . . . . . . . . . . . . . . . . . Searches Triggered . | . . . . . . . . . . . . . . . . . . . . . . . . . . . . . Construction Impeded 1 | . . . . . 1 . . . . . . . . . . . . . . . . . . . . . . . Haulers Reinforced . | . . . . . . . . . . . . . . . . . . . . . . . . . . . . . Active Scanning Responses . | . . . . . . . . . . . . . . . . . . . . . . . . . . . . . Cargo Convoy Interrupts . | . . . . . . . . . . . . . . . . . . . . . . . . . . . . . Stealth | -11 -10 -10 -10 -9 -8 -7 -7 -7 -7 -6 -6 -6 -6 -6 -5 -5 -5 -5 -5 -5 -4 -4 -4 -4 -3 -3 -2 -1 --------- Run | Yrd Mat Min Exi Min Mat Fac Low Low Dat Pro Fac Low Low Zio Pro Fac Ext Cet Arc Hub Fac Upp Upp Zhi Pro Res Res Acc Distress Signals 11 | . 1 . . . 2 1 . . . . . . . . . 1 3 1 1 . 1 . . . . . . . Communications Jammed 322 | . . . . . 51 . . . . . 1 . . . 1 10 169 20 1 8 5 . . . . 7 31 18 Distress Signals 320 | . . . . . 51 . . . . . 1 . . . . 9 169 20 1 8 5 . . . . 7 31 18 Times Spotted 358 | . 12 . . 7 33 27 8 9 4 8 21 1 6 . 5 31 43 5 4 11 15 4 7 . 1 14 23 59 Peak Tracking Total 6 | . 4 . . 4 5 5 3 3 4 3 4 1 3 . 2 4 5 5 3 3 3 2 2 . 1 5 4 6 Tactical Retreats 23 | . 1 . . 1 2 1 . 1 . . 4 . 1 . . 2 2 . . . 1 . 1 . . 2 . 4 Traps | -11 -10 -10 -10 -9 -8 -7 -7 -7 -7 -6 -6 -6 -6 -6 -5 -5 -5 -5 -5 -5 -4 -4 -4 -4 -3 -3 -2 -1 ------- Run | Yrd Mat Min Exi Min Mat Fac Low Low Dat Pro Fac Low Low Zio Pro Fac Ext Cet Arc Hub Fac Upp Upp Zhi Pro Res Res Acc Traps Triggered 9 | . . . . . 3 2 . . . . . . . . . 1 2 . . . . . . . . . . 1 Indirectly . | . . . . . . . . . . . . . . . . . . . . . . . . . . . . . Trap Hack Attempts . | . . . . . . . . . . . . . . . . . . . . . . . . . . . . . Triggered . | . . . . . . . . . . . . . . . . . . . . . . . . . . . . . Disarmed . | . . . . . . . . . . . . . . . . . . . . . . . . . . . . . Reprogrammed 6 | . . . . . . . . . . . 6 . . . . . . . . . . . . . . . . . Reused . | . . . . . . . . . . . . . . . . . . . . . . . . . . . . . Traps Extracted . | . . . . . . . . . . . . . . . . . . . . . . . . . . . . . Installed . | . . . . . . . . . . . . . . . . . . . . . . . . . . . . . Triggered 5 | . . . . . . . . . . . . . 1 . . . . . . . . . 1 . 3 . . . Machines | -11 -10 -10 -10 -9 -8 -7 -7 -7 -7 -6 -6 -6 -6 -6 -5 -5 -5 -5 -5 -5 -4 -4 -4 -4 -3 -3 -2 -1 ---------- Run | Yrd Mat Min Exi Min Mat Fac Low Low Dat Pro Fac Low Low Zio Pro Fac Ext Cet Arc Hub Fac Upp Upp Zhi Pro Res Res Acc Machines Disabled 8 | . . . . . . 1 . . . . 2 1 . . . . 1 . 2 . . . . . . . 1 . Max in Single Turn 1 | . . . . . . 1 . . . . 1 1 . . . . . . . . . . . . . . 1 . Garrison Access 9 | . . . . . . 1 . . . . 2 . . . . . . . . 1 1 . . . . 1 . 3 Network Hub 2 | . . . . . . . . . . . . . . . . . . . . 2 . . . . . . . . Energy Cycler 1 | . . . . . . . . . . . . . . . . . . . . . . . . . . . . 1 Machines Repaired . | . . . . . . . . . . . . . . . . . . . . . . . . . . . . . Machines Dismantled . | . . . . . . . . . . . . . . . . . . . . . . . . . . . . . Machines Sabotaged 1 | . . . . . . . . . . . . . . . . . . . . 1 . . . . . . . . Overloaded Fab Kills . | . . . . . . . . . . . . . . . . . . . . . . . . . . . . . Hacking | -11 -10 -10 -10 -9 -8 -7 -7 -7 -7 -6 -6 -6 -6 -6 -5 -5 -5 -5 -5 -5 -4 -4 -4 -4 -3 -3 -2 -1 --------- Run | Yrd Mat Min Exi Min Mat Fac Low Low Dat Pro Fac Low Low Zio Pro Fac Ext Cet Arc Hub Fac Upp Upp Zhi Pro Res Res Acc Machines Accessed 100 | . 4 . . . 9 11 1 2 2 . 11 . . . . 7 13 1 . 5 6 . . 5 . 5 6 12 Terminals 64 | . 2 . . . 8 4 . . . . 7 . . . . 6 13 1 . 5 4 . . . . 3 5 6 Fabricators 5 | . . . . . . 3 . . . . 2 . . . . . . . . . . . . . . . . . Repair Stations 4 | . 1 . . . . 1 . . . . . . . . . 1 . . . . . . . . . . . 1 Recycling Units 10 | . 1 . . . 1 3 . . . . . . . . . . . . . . 1 . . . . 1 1 2 Scanalyzers . | . . . . . . . . . . . . . . . . . . . . . . . . . . . . . Garrison Access 7 | . . . . . . . . . . . 2 . . . . . . . . . 1 . . . . 1 . 3 Total Hacks 391 | . 12 . . . 28 26 1 2 23 . 30 . . . . 26 34 2 . 15 30 . . 14 . 28 46 74 Successful 219 | . 8 . . . 19 10 1 2 23 . 19 . . . . 13 20 1 . 10 17 . . 14 . 10 20 32 Failed 172 | . 4 . . . 9 16 . . . . 11 . . . . 13 14 1 . 5 13 . . . . 18 26 42 Catastrophic 28 | . 1 . . . . 3 . . . . 2 . . . . 1 3 . . 1 1 . . . . 2 9 5 Database Lockouts . | . . . . . . . . . . . . . . . . . . . . . . . . . . . . . Manual 152 | . 5 . . . 15 3 . . . . 13 . . . . 14 15 1 . 7 17 . . . . 10 22 30 Terminals 291 | . 8 . . . 27 9 . . . . 24 . . . . 24 34 2 . 15 26 . . . . 24 42 56 Fabricators 8 | . . . . . . 4 . . . . 4 . . . . . . . . . . . . . . . . . Repair Stations 12 | . 3 . . . . 3 . . . . . . . . . 2 . . . . . . . . . . . 4 Recycling Units 27 | . 1 . . . 1 10 . . . . . . . . . . . . . . 2 . . . . 2 4 7 Scanalyzers . | . . . . . . . . . . . . . . . . . . . . . . . . . . . . . Garrison Access 13 | . . . . . . . . . . . 2 . . . . . . . . . 2 . . . . 2 . 7 Terminal Hacks 135 | . 3 . . . 12 . 1 2 23 . 7 . . . . 6 16 1 . 7 9 . . 14 . 5 12 17 Record 3 | . . . . . . . . . . . . . . . . . . . . . . . . 2 . 1 . . Part Schematic 19 | . . . . . . . . . 13 . . . . . . . 1 . . . . . . 4 . . 1 . Robot Schematic 7 | . . . . . . . . . 7 . . . . . . . . . . . . . . . . . . . Robot Analysis 11 | . . . . . 1 . . . . . . . . . . . 1 . . . 1 . . 4 . . 2 2 Prototype ID Bank 13 | . . . . . 3 . . . 3 . . . . . . . 1 . . . 1 . . 4 . . 1 . Open Door 13 | . . . . . . . 1 2 . . . . . . . . 8 1 . . . . . . . . . 1 Level Access Points 2 | . . . . . . . . . . . . . . . . . . . . 1 . . . . . . . 1 Branch Access Points 6 | . 1 . . . 1 . . . . . . . . . . . . . . 1 . . . . . 1 1 1 Emergency Access Points 1 | . . . . . 1 . . . . . . . . . . . . . . . . . . . . . . . Machine Index 1 | . . . . . . . . . . . . . . . . . . . . 1 . . . . . . . . Terminal Index 3 | . . . . . . . . . . . . . . . . . 1 . . . 1 . . . . . . 1 Garrison Index 1 | . . . . . . . . . . . . . . . . . . . . . . . . . . . . 1 Alert Level 19 | . . . . . 1 . . . . . 3 . . . . 2 1 . . 2 3 . . . . 1 3 3 Unreport Threat 8 | . . . . . 1 . . . . . . . . . . 2 . . . 1 1 . . . . 1 2 . Locate Traps 18 | . 1 . . . 2 . . . . . 2 . . . . 2 3 . . 1 2 . . . . . . 5 Reprogram Traps 1 | . . . . . . . . . . . 1 . . . . . . . . . . . . . . . . . Registered Components 6 | . 1 . . . 1 . . . . . 1 . . . . . . . . . . . . . . 1 1 1 Registered Prototypes 2 | . . . . . . . . . . . . . . . . . . . . . . . . . . . 1 1 Zone Layout 1 | . . . . . 1 . . . . . . . . . . . . . . . . . . . . . . . Fabricator Hacks 3 | . . . . . . 1 . . . . 2 . . . . . . . . . . . . . . . . . Network Status 1 | . . . . . . 1 . . . . . . . . . . . . . . . . . . . . . . Build 2 | . . . . . . . . . . . 2 . . . . . . . . . . . . . . . . . Repair Station Hacks 8 | . 1 . . . . 3 . . . . . . . . . 2 . . . . . . . . . . . 2 Scan Component 4 | . . . . . . 2 . . . . . . . . . 1 . . . . . . . . . . . 1 Repair 3 | . . . . . . 1 . . . . . . . . . 1 . . . . . . . . . . . 1 Refit 1 | . 1 . . . . . . . . . . . . . . . . . . . . . . . . . . . Recycling Unit Hacks 11 | . 1 . . . 1 3 . . . . . . . . . . . . . . 1 . . . . 1 2 2 Report Inventory 10 | . 1 . . . 1 3 . . . . . . . . . . . . . . 1 . . . . 1 1 2 Retrieve Components 1 | . . . . . . . . . . . . . . . . . . . . . . . . . . . 1 . Scanalyzer . | . . . . . . . . . . . . . . . . . . . . . . . . . . . . . Garrison Access Hacks 7 | . . . . . . . . . . . 2 . . . . . . . . . 1 . . . . 1 . 3 Seal Access 7 | . . . . . . . . . . . 2 . . . . . . . . . 1 . . . . 1 . 3 Unauthorized Hacks 55 | . 3 . . . 6 3 . . . . 8 . . . . 5 4 . . 3 6 . . . . 3 6 8 Terminals 45 | . 3 . . . 6 . . . . . 7 . . . . 5 4 . . 3 5 . . . . 2 4 6 Track 12 | . 1 . . . 3 . . . . . 3 . . . . 1 . . . . . . . . . . 1 3 Assimilate 2 | . . . . . . . . . . . . . . . . 1 . . . . 1 . . . . . . . Botnet 26 | . 2 . . . 3 . . . . . 3 . . . . 3 3 . . 1 3 . . . . 2 3 3 Operators 3 | . . . . . . . . . . . 1 . . . . . 1 . . . 1 . . . . . . . Sabotage 2 | . . . . . . . . . . . . . . . . . . . . 2 . . . . . . . . Fabricators 4 | . . . . . . 3 . . . . 1 . . . . . . . . . . . . . . . . . Report 3 | . . . . . . 3 . . . . . . . . . . . . . . . . . . . . . . Prioritize 1 | . . . . . . . . . . . 1 . . . . . . . . . . . . . . . . . Repair Stations . | . . . . . . . . . . . . . . . . . . . . . . . . . . . . . Recycling Units 6 | . . . . . . . . . . . . . . . . . . . . . 1 . . . . 1 2 2 Reject 2 | . . . . . . . . . . . . . . . . . . . . . . . . . . . 1 1 Recyclers 4 | . . . . . . . . . . . . . . . . . . . . . 1 . . . . 1 1 1 Scanalyzers . | . . . . . . . . . . . . . . . . . . . . . . . . . . . . . Garrison Access . | . . . . . . . . . . . . . . . . . . . . . . . . . . . . . Data Cores Recovered 2 | . . . . . . . . . . . . . . . . . 1 . . . . . . . . . 1 . Used . | . . . . . . . . . . . . . . . . . . . . . . . . . . . . . Hacking Detections 66 | . 3 . . . 8 9 . . . . 7 . . . . 7 7 . . 3 5 . . . . 3 6 8 Full Trace Events 5 | . . . . . 1 3 . . . . . . . . . . 1 . . . . . . . . . . . Feedback Events . | . . . . . . . . . . . . . . . . . . . . . . . . . . . . . Feedback Blocked . | . . . . . . . . . . . . . . . . . . . . . . . . . . . . . Robot Schematics Acquired 10 | . . . . . . . . . 7 . . . . 3 . . . . . . . . . . . . . . Robots Built . | . . . . . . . . . . . . . . . . . . . . . . . . . . . . . Authchips . | . . . . . . . . . . . . . . . . . . . . . . . . . . . . . Time . | . . . . . . . . . . . . . . . . . . . . . . . . . . . . . Total Robot Build Rating . | . . . . . . . . . . . . . . . . . . . . . . . . . . . . . Part Schematics Acquired 33 | . . . . . . . . . 13 . . . . 14 . . 1 . . . . . . 4 . . 1 . Parts Built 3 | . . . . . . . . . . . 3 . . . . . . . . . . . . . . . . . Authchips . | . . . . . . . . . . . . . . . . . . . . . . . . . . . . . Time 234 | . . . . . . . . . . . 234 . . . . . . . . . . . . . . . . . Total Part Build Rating 17 | . . . . . . . . . . . 17 . . . . . . . . . . . . . . . . . Parts Repaired 3 | . . . . . . 1 . . . . . . . . . 1 . . . . . . . . . . . 1 Time 112 | . . . . . . 38 . . . . . . . . . 56 . . . . . . . . . . . 18 Parts Recycled . | . . . . . . . . . . . . . . . . . . . . . . . . . . . . . Recycled Matter . | . . . . . . . . . . . . . . . . . . . . . . . . . . . . . Retrieved Matter . | . . . . . . . . . . . . . . . . . . . . . . . . . . . . . Retrieved Components 3 | . . . . . . . . . . . . . . . . . . . . . . . . . . . 3 . Parts Scanalyzed . | . . . . . . . . . . . . . . . . . . . . . . . . . . . . . Part Schematics Acquired . | . . . . . . . . . . . . . . . . . . . . . . . . . . . . . Parts Damaged . | . . . . . . . . . . . . . . . . . . . . . . . . . . . . . Bothacking | -11 -10 -10 -10 -9 -8 -7 -7 -7 -7 -6 -6 -6 -6 -6 -5 -5 -5 -5 -5 -5 -4 -4 -4 -4 -3 -3 -2 -1 ------------ Run | Yrd Mat Min Exi Min Mat Fac Low Low Dat Pro Fac Low Low Zio Pro Fac Ext Cet Arc Hub Fac Upp Upp Zhi Pro Res Res Acc Used RIF Installer . | . . . . . . . . . . . . . . . . . . . . . . . . . . . . . Robots Hacked . | . . . . . . . . . . . . . . . . . . . . . . . . . . . . . Non-combat . | . . . . . . . . . . . . . . . . . . . . . . . . . . . . . Combat . | . . . . . . . . . . . . . . . . . . . . . . . . . . . . . Robot Hacks Applied . | . . . . . . . . . . . . . . . . . . . . . . . . . . . . . Relay Couplers Released 5 | . . . . . . 1 . . . . . . . . . . . . . 2 . . . . . . 2 . Machine Destruction 3 | . . . . . . 1 . . . . . . . . . . . . . 2 . . . . . . . . Programmers 2 | . . . . . . . . . . . . . . . . . . . . . . . . . . . 2 . Fabnet Peak Effective % . | . . . . . . . . . . . . . . . . . . . . . . . . . . . . . Robots Rewired 16 | . . . 2 . . . . . . 2 . . . . . . 10 . . . . . . . 2 . . . Allies Hacked . | . . . . . . . . . . . . . . . . . . . . . . . . . . . . . Hacks Repelled . | . . . . . . . . . . . . . . . . . . . . . . . . . . . . . Allies | -11 -10 -10 -10 -9 -8 -7 -7 -7 -7 -6 -6 -6 -6 -6 -5 -5 -5 -5 -5 -5 -4 -4 -4 -4 -3 -3 -2 -1 -------- Run | Yrd Mat Min Exi Min Mat Fac Low Low Dat Pro Fac Low Low Zio Pro Fac Ext Cet Arc Hub Fac Upp Upp Zhi Pro Res Res Acc Total Allies 35 | . . 1 2 1 . . . . . 2 . . . 4 . . 21 2 . . . . . . 2 . . . Largest Group 13 | . . 1 3 4 4 . . . . 2 1 . . 4 4 1 13 11 11 6 3 . . . 2 2 . . Highest-Rated Group 523 | . . 31 47 78 78 . . . . 58 29 . . 101 101 25 382 523 523 293 212 . . . 89 89 . . Highest-Rated Ally 159 | . . 31 31 31 31 . . . . 29 29 . . 31 31 25 159 159 143 96 96 . . . 47 47 . . Total Orders . | . . . . . . . . . . . . . . . . . . . . . . . . . . . . . Ally Attacks 405 | . . . 17 12 46 . . . . 21 6 . . . 32 . 146 12 44 37 23 . . . 1 8 . . Total Damage 8197 | . . . 212 135 597 . . . . 303 95 . . . 534 . 2699 176 1082 1132 1032 . . . 18 182 . . Kills 64 | . . . 3 3 10 . . . . 2 1 . . . 1 . 21 1 4 10 6 . . . 1 1 . . Allies Corrupted 1 | . . . . . . . . . . . . . . . . . . . . 1 . . . . . . . . Allies Melted . | . . . . . . . . . . . . . . . . . . . . . . . . . . . . . Intel | -11 -10 -10 -10 -9 -8 -7 -7 -7 -7 -6 -6 -6 -6 -6 -5 -5 -5 -5 -5 -5 -4 -4 -4 -4 -3 -3 -2 -1 ------- Run | Yrd Mat Min Exi Min Mat Fac Low Low Dat Pro Fac Low Low Zio Pro Fac Ext Cet Arc Hub Fac Upp Upp Zhi Pro Res Res Acc Robot Analysis Total 11 | . . . . . 1 . . . . . . . . . . . 1 . . . 1 . . 4 . . 2 2 Derelict Logs Recovered 17 | . . 1 . 1 . . 2 1 . 1 . 3 1 3 2 . . . . . . 1 1 . . . . . Drone Launches . | . . . . . . . . . . . . . . . . . . . . . . . . . . . . . Drone Recoveries . | . . . . . . . . . . . . . . . . . . . . . . . . . . . . . Decoded 0b10 Intel 202 | . . . . . . . . . . . . . . . . 31 14 . . 11 30 . . . . 13 27 76 Garrisons 5 | . . . . . . . . . . . . . . . . . . . . 1 2 . . . . 1 . 1 Patrols 112 | . . . . . . . . . . . . . . . . 19 6 . . . 17 . . . . 3 11 56 Investigations 2 | . . . . . . . . . . . . . . . . . 1 . . 1 . . . . . . . . Reinforcements 9 | . . . . . . . . . . . . . . . . . 4 . . . . . . . . . . 5 Guards 74 | . . . . . . . . . . . . . . . . 12 3 . . 9 11 . . . . 9 16 14 Exploration | -11 -10 -10 -10 -9 -8 -7 -7 -7 -7 -6 -6 -6 -6 -6 -5 -5 -5 -5 -5 -5 -4 -4 -4 -4 -3 -3 -2 -1 ------------- Run | Yrd Mat Min Exi Min Mat Fac Low Low Dat Pro Fac Low Low Zio Pro Fac Ext Cet Arc Hub Fac Upp Upp Zhi Pro Res Res Acc Turns Passed 23808 | 25 417 299 590 394 1053 2563 727 807 133 601 2739 468 489 952 1082 1636 1144 301 65 433 1341 449 269 103 170 521 1106 2931 Spaces Moved 20159 | 14 217 178 447 300 678 1727 584 649 97 454 2136 463 437 861 939 1648 1072 240 43 340 1041 898 382 194 385 757 1274 1704 Core 1 | . . . . . . . . . . . . . . . . . . . . . . . . . . . 1 . Treads 485 | 7 217 178 83 . . . . . . . . . . . . . . . . . . . . . . . . . Legs 845 | 7 . . 364 300 174 . . . . . . . . . . . . . . . . . . . . . . . Wheels 7789 | . . . . . . 885 584 649 97 454 2136 463 437 861 939 284 . . . . . . . . . . . . Hover 9693 | . . . . . . . . . . . . . . . . 1364 1072 240 43 340 1041 898 382 194 385 757 1273 1704 Flight 1346 | . . . . . 504 842 . . . . . . . . . . . . . . . . . . . . . . Fastest Speed 35 | 120 160 160 120 120 37 106 115 115 115 100 100 100 100 100 100 44 44 44 104 104 41 41 41 35 35 35 38 107 Average Speed 89 | 140 160 160 127 120 112 128 115 115 115 104 100 100 100 105 100 64 59 96 104 104 70 41 41 38 35 35 54 107 Slowest Speed 240 | 160 160 160 160 120 200 230 115 115 115 115 100 100 115 115 100 240 108 104 104 104 104 41 41 41 35 38 200 107 Overloaded Moves . | . . . . . . . . . . . . . . . . . . . . . . . . . . . . . Propulsion Burnouts . | . . . . . . . . . . . . . . . . . . . . . . . . . . . . . Robots Hopped . | . . . . . . . . . . . . . . . . . . . . . . . . . . . . . Cave-ins Triggered 1 | . . . . . . 1 . . . . . . . . . . . . . . . . . . . . . . Exploration Rate (%) 59 | 2 55 37 91 79 55 43 83 68 77 57 60 66 55 83 97 38 86 87 69 40 29 94 53 62 56 22 34 36 Regions Visited 28 Branch Regions 19 Pre-discovered Areas 6 | . . 1 . 1 . . . . . 1 . . 1 1 1 . . . . . . . . . . . . . Known Exits Taken 24 | . 1 . . . 1 1 1 1 1 1 1 1 1 1 1 1 1 1 1 1 1 1 1 1 1 1 1 . Unknown Exits Taken 4 | 1 . 1 1 1 . . . . . . . . . . . . . . . . . . . . . . . . Scrap Searched 27 | . . . . 1 . . 3 1 . 1 . 2 4 4 5 . . . . . . 4 1 . 1 . . . Spaces Dug 131 | . . . . . 4 2 . . . . 21 . . . . 16 . . . 4 17 . . . . 16 20 31 Terrain Destroyed 225 | . . . . . 31 6 . . . . 21 . 25 . 38 16 . . . 4 17 . . . . 16 20 31 Melee 131 | . . . . . 4 2 . . . . 21 . . . . 16 . . . 4 17 . . . . 16 20 31 Projectile . | . . . . . . . . . . . . . . . . . . . . . . . . . . . . . AOE 94 | . . . . . 27 4 . . . . . . 25 . 38 . . . . . . . . . . . . . Terrain Rammed . | . . . . . . . . . . . . . . . . . . . . . . . . . . . . . Walls Destroyed . | . . . . . . . . . . . . . . . . . . . . . . . . . . . . . Machines Disabled . | . . . . . . . . . . . . . . . . . . . . . . . . . . . . . Actions | -11 -10 -10 -10 -9 -8 -7 -7 -7 -7 -6 -6 -6 -6 -6 -5 -5 -5 -5 -5 -5 -4 -4 -4 -4 -3 -3 -2 -1 --------- Run | Yrd Mat Min Exi Min Mat Fac Low Low Dat Pro Fac Low Low Zio Pro Fac Ext Cet Arc Hub Fac Upp Upp Zhi Pro Res Res Acc Total 24769 | 18 255 192 468 327 914 2019 627 697 107 553 2682 464 473 899 1052 2090 1467 296 54 388 1553 966 459 214 415 938 1610 2572 Wait 2924 | . 14 13 4 9 121 124 7 11 . 16 429 . 13 6 73 315 210 37 8 24 442 61 42 . 22 117 200 606 Move 20130 | 13 216 177 446 299 677 1726 583 648 96 453 2135 462 436 860 938 1647 1071 239 42 339 1040 897 381 193 384 756 1273 1703 Hop . | . . . . . . . . . . . . . . . . . . . . . . . . . . . . . Pick Up 59 | . . . 2 1 4 4 . 2 . 3 8 . . 2 3 5 3 . . . . . . 2 . 5 9 6 Fast Attach 95 | 3 3 1 5 . 11 14 . 1 . . 6 . . 8 . 10 6 . . . 5 . . 5 . 2 11 4 Attach 22 | . . . . . 1 2 . . . 2 4 . . . 2 . . . . . . . . . . 3 4 4 Detach 19 | . . . . . 1 4 . . . . 1 . . 4 . . . . . . . . . . . 3 2 4 Swap 126 | 1 3 . . . 3 6 . 5 1 2 15 . 4 6 4 12 7 2 . 1 8 . 1 2 . 3 10 30 Drop 139 | 1 3 1 6 . 8 20 . 3 . 1 17 . 2 5 1 11 10 2 . . 6 . . 8 . 6 22 6 Fire 23 | . 16 . . . 4 1 . . . . . . 1 . 1 . . . . . . . . . . . . . Melee 637 | . . . . 7 47 54 18 16 10 20 42 2 8 1 12 58 48 6 4 14 42 5 15 4 2 33 55 114 Ram . | . . . . . . . . . . . . . . . . . . . . . . . . . . . . . Kick . | . . . . . . . . . . . . . . . . . . . . . . . . . . . . . Crush . | . . . . . . . . . . . . . . . . . . . . . . . . . . . . . Escape Stasis 44 | . . . . . . 18 . . . . . . . . . . 26 . . . . . . . . . . . Rewire 90 | . . . 5 . . . . . . 33 . . . . . . 45 . . . . . . . 7 . . . Trap . | . . . . . . . . . . . . . . . . . . . . . . . . . . . . . Miscellaneous 461 | . . . . 11 37 46 19 11 . 23 25 . 9 7 18 32 41 10 . 10 10 3 20 . . 10 24 95 Route ------- -11/Scrapyard -10/Materials (discovered 3 exits: [*Mat] / *Min x2) -10/Mines -10/Exiles -9/Mines (discovered 2 exits: *Mat x2) -8/Materials (discovered 3 exits: *Fac x3) -7/Factory (discovered 4 exits: *Fac x3 / *Low) -7/Lower Caves -7/Lower Caves (discovered 2 exits: *Fac / *Dat) -7/Data Miner -6/Proximity Caves -6/Factory (discovered 3 exits: *Fac x2 / *Low) -6/Lower Caves -6/Lower Caves (discovered 2 exits: *Fac / *Zio) -6/Zion -5/Proximity Caves -5/Factory (discovered 3 exits: *Upp / *Ext x2) -5/Extension (discovered 3 exits: *Fac x2 / *Cet) -5/Cetus (discovered 2 exits: *Fac / *Arc) -5/Archives -5/Hub_04(d) (discovered 4 exits: *Fac x4) -4/Factory (discovered 2 exits: *Upp x2) -4/Upper Caves -4/Upper Caves -4/Zhirov -3/Proximity Caves -3/Research (discovered 4 exits: *Res / Arm / Qua x2) -2/Research (discovered 3 exits: *Acc / *Tes x2) -1/Access (discovered 2 exits: *Sur / Com) To Epsilon Eridani History --------- Turn | Location | Event 1 | -11/Scrapyard | Discovered new exit (range 1) 5 | -11/Scrapyard | Upgraded with Propulsion slot (x1) 5 | -11/Scrapyard | Upgraded with Utility slot (x3) 5 | -11/Scrapyard | Upgraded with Weapon slot (x1) 26 | -11/Scrapyard | Entered Materials 108 | -10/Materials | Discovered new exit (range 13) 192 | -10/Materials | Identified exit to Mines 268 | -10/Materials | Discovered new exit (range 14) 303 | -10/Materials | Build established: Mutant 443 | -10/Materials | Entered Mines 524 | -10/Mines | Met a Derelict testing a Signal Generator 554 | -10/Mines | Met a Derelict bent on vengeance 620 | -10/Mines | Deemed a non-threat by the Exiles lab entrance 620 | -10/Mines | Discovered new exit (range 5) 742 | -10/Mines | Entered Exiles 742 | -10/Exiles | Found Exiles lab destroyed 742 | -10/Exiles | Accompanied by 1 ally 818 | -10/Exiles | Reached level 2 1318 | -10/Exiles | Discovered new exit (range 10) 1332 | -10/Exiles | Entered Mines 1332 | -9/Mines | Accompanied by 3 allies 1430 | -9/Mines | Reached level 3 1468 | -9/Mines | Build established: Gladiator 1487 | -9/Mines | Discovered new exit (range 12) 1526 | -9/Mines | Learned 2 Materials zone layouts 1674 | -9/Mines | Escorted by a lone wolf Derelict 1695 | -9/Mines | Learned location of Storage (-7) 1700 | -9/Mines | Received a Rocket Launcher from a helpful Derelict 1706 | -9/Mines | Upgraded with Utility slot (x1) 1712 | -9/Mines | Discovered new exit (range 15) 1726 | -9/Mines | Entered Materials 1726 | -8/Materials | Accompanied by 4 allies 1727 | -8/Materials | Identified exit to Factory 1728 | -8/Materials | Reached level 4 1728 | -8/Materials | Reached level 5 1728 | -8/Materials | Reached level 6 1889 | -8/Materials | Reached level 7 1929 | -8/Materials | Upgraded with Utility slot (x3) 2083 | -8/Materials | Lost 3 allies 2095 | -8/Materials | Discovered exit to Factory (range 3) 2502 | -8/Materials | Reached level 8 2601 | -8/Materials | Build established: Derelict-Gladiator 2724 | -8/Materials | Destroyed 8 combat bots 2779 | -8/Materials | Entered Factory 2781 | -7/Factory | Reached level 9 2781 | -7/Factory | Reached level 10 2813 | -7/Factory | Upgraded with Utility slot (x1) 2813 | -7/Factory | Upgraded with Weapon slot (x1) 2843 | -7/Factory | Discovered new exit (range 16) 2956 | -7/Factory | Repaired Hrd. Medium Armor Plating 3015 | -7/Factory | Build established: Gladiator 3334 | -7/Factory | Discovered new exit (range 14) 3421 | -7/Factory | Crushed by falling debris 3667 | -7/Factory | Identified exit to Factory 4390 | -7/Factory | Reached level 11 4517 | -7/Factory | Discovered exit to Factory (range 17) 4685 | -7/Factory | Build established: Hacker-Gladiator 4996 | -7/Factory | Reached level 12 5007 | -7/Factory | Discovered new exit (range 8) 5019 | -7/Factory | Identified exit to Lower Caves 5342 | -7/Factory | Entered Lower Caves 5585 | -7/Lower Caves | Learned Factory terminal intel 5606 | -7/Lower Caves | Learned Factory stockpile data 5982 | -7/Lower Caves | Discovered new exit (range 9) 5994 | -7/Lower Caves | Identified exit to Lower Caves 6069 | -7/Lower Caves | Entered another Lower Caves area 6071 | -7/Lower Caves | Reached level 13 6147 | -7/Lower Caves | Discovered exit to Factory (range 5) 6396 | -7/Lower Caves | Learned Factory terminal intel 6699 | -7/Lower Caves | Discovered new exit (range 15) 6740 | -7/Lower Caves | Identified exit to Data Miner 6876 | -7/Lower Caves | Entered Data Miner 6876 | -7/Data Miner | Discovered new exit (range 6) 6878 | -7/Data Miner | Reached level 14 6897 | -7/Data Miner | Met Data Miner 6939 | -7/Data Miner | Received God Mode back door access code from Data Miner 6960 | -7/Data Miner | Data Conduit disabled 7008 | -7/Data Miner | Identified exit to Proximity Caves 7009 | -7/Data Miner | Entered Proximity Caves 7028 | -6/Proximity Caves | Found DCF Scrap (13 items) 7188 | -6/Proximity Caves | Reached level 15 7208 | -6/Proximity Caves | Upgraded with Propulsion slot (x2) 7291 | -6/Proximity Caves | Attracted the attention of an 0b10 outpost 7557 | -6/Proximity Caves | Discovered exit to Factory (range 8) 7610 | -6/Proximity Caves | Entered Factory 7610 | -6/Factory | Accompanied by 1 ally 7612 | -6/Factory | Loaded intel: 25 terminal locations 7612 | -6/Factory | Reached level 16 7636 | -6/Factory | Discovered new exit (range 14) 7677 | -6/Factory | Found Scatter Rocket Array 7758 | -6/Factory | Fabricated Power Sword (x2) 7785 | -6/Factory | Identified exit to Lower Caves 8080 | -6/Factory | Upgraded with Power slot (x1) 8246 | -6/Factory | Fabricated Centrium Greatsword? 8574 | -6/Factory | Reached level 17 8587 | -6/Factory | Upgraded with Weapon slot (x1) 8845 | -6/Factory | Discovered new exit (range 12) 8865 | -6/Factory | Identified exit to Factory 8957 | -6/Factory | Discovered exit to Factory (range 16) 10349 | -6/Factory | Entered Lower Caves 10447 | -6/Lower Caves | Identified exit to Lower Caves 10507 | -6/Lower Caves | Encountered a Warlord checkpoint 10564 | -6/Lower Caves | Learned Factory garrison access intel 10631 | -6/Lower Caves | Attacked by a delusional Derelict stockpiling parts 10682 | -6/Lower Caves | Learned 4 Factory zone layouts 10817 | -6/Lower Caves | Entered another Lower Caves area 10855 | -6/Lower Caves | Discovered exit to Factory (range 15) 11028 | -6/Lower Caves | Encountered a Warlord checkpoint 11116 | -6/Lower Caves | Reached level 18 11237 | -6/Lower Caves | Attracted the attention of an 0b10 checkpoint 11266 | -6/Lower Caves | Discovered new exit (range 10) 11301 | -6/Lower Caves | Identified exit to Zion 11306 | -6/Lower Caves | Entered Zion 11335 | -6/Zion | Learned 12 Factory zone layouts 11336 | -6/Zion | Discovered new exit (range 15) 11358 | -6/Zion | Learned Factory interactive machine intel 11368 | -6/Zion | Upgraded with Weapon slot (x1) 11368 | -6/Zion | Found CR-A16's Pointy Stick 11415 | -6/Zion | Given A8's code to call for help 11745 | -6/Zion | Found Prototype Hackware 11745 | -6/Zion | Identified Exp. System Shield 11748 | -6/Zion | Found Prototype Processor 11748 | -6/Zion | Identified Exp. Armor Integrity Analyzer 11752 | -6/Zion | Found Prototype Processor 11752 | -6/Zion | Identified Exp. Core Analyzer 11755 | -6/Zion | Found Prototype Processor 11755 | -6/Zion | Identified Exp. Melee Analysis Suite 11759 | -6/Zion | Found Prototype Processor 11759 | -6/Zion | Identified Spectral Analyzer 11813 | -6/Zion | Acquired unknown access codes intercepted by a Zionite 12021 | -6/Zion | Given the Hacking Drone Bay 12067 | -6/Zion | Met Imprinter 12161 | -6/Zion | Gained Derelict followers 12240 | -6/Zion | Identified exit to Proximity Caves 12258 | -6/Zion | Entered Proximity Caves 12258 | -5/Proximity Caves | Accompanied by 4 allies 12260 | -5/Proximity Caves | Reached level 19 12312 | -5/Proximity Caves | Spotter reported a threat 12385 | -5/Proximity Caves | Spotter reported a threat 12625 | -5/Proximity Caves | Learned location of Warlord (-5) 12658 | -5/Proximity Caves | Spotted B-75 Beast 12695 | -5/Proximity Caves | Revealed the true nature of CR-A16's Pointy Stick 12698 | -5/Proximity Caves | Destroyed B-75 Beast 12856 | -5/Proximity Caves | Learned Factory stockpile data 12962 | -5/Proximity Caves | Reached level 20 13005 | -5/Proximity Caves | Upgraded with Utility slot (x1) 13087 | -5/Proximity Caves | Attracted the attention of an 0b10 checkpoint 13309 | -5/Proximity Caves | Discovered exit to Factory (range 5) 13340 | -5/Proximity Caves | Entered Factory 13340 | -5/Factory | Accompanied by 1 ally 13341 | -5/Factory | Identified exit to Extension 13342 | -5/Factory | Identified exit to Upper Caves 13344 | -5/Factory | Loaded intel: 51 interactive machine locations 13345 | -5/Factory | Loaded intel: 28 terminal locations 13346 | -5/Factory | Loaded intel: 4 garrison access locations 13775 | -5/Factory | Reached level 21 13857 | -5/Factory | Repaired Antigrav System 13915 | -5/Factory | Upgraded with Propulsion slot (x1) 14084 | -5/Factory | Discovered exit to Extension (range 17) 14088 | -5/Factory | Found Imp. Powered Armor 14786 | -5/Factory | Build established: Hacker-Ninja 14976 | -5/Factory | Entered Extension 14978 | -5/Extension | Reached level 22 15023 | -5/Extension | Rescued a captive Derelict 15024 | -5/Extension | Rescued a captive Derelict 15207 | -5/Extension | Rescued a captive Derelict 15209 | -5/Extension | Rescued a captive Derelict 15265 | -5/Extension | Rescued a captive Derelict 15493 | -5/Extension | Spotted B-75 Beast 15510 | -5/Extension | Spotted B-75 Beast 15518 | -5/Extension | Destroyed B-75 Beast 15529 | -5/Extension | Destroyed B-75 Beast 15582 | -5/Extension | Discovered new exit (range 4) 15587 | -5/Extension | Identified exit to Factory 15633 | -5/Extension | Lost 3 allies 15719 | -5/Extension | Rescued a captive Derelict 15720 | -5/Extension | Rescued a captive Derelict 15769 | -5/Extension | Rescued a captive Derelict 15770 | -5/Extension | Rescued a captive Derelict 15805 | -5/Extension | Build established: Hacker-Gladiator 15876 | -5/Extension | First assault squad dispatched 15895 | -5/Extension | Reached level 23 15978 | -5/Extension | Lost 5 allies 16015 | -5/Extension | Rescued A7 16030 | -5/Extension | Rescued a captive Derelict 16083 | -5/Extension | Discovered exit to Factory (range 10) 16084 | -5/Extension | Discovered new exit (range 6) 16086 | -5/Extension | Identified exit to Cetus 16120 | -5/Extension | Entered Cetus 16120 | -5/Cetus | Accompanied by 10 allies (A7) 16125 | -5/Cetus | Acquired a Cetus Manufacturing Module code from A7 16126 | -5/Cetus | Spotted Cetus Guard 16127 | -5/Cetus | Spotted Cetus Guard 16128 | -5/Cetus | Spotted Cetus Guard 16130 | -5/Cetus | Spotted Cetus Guard 16143 | -5/Cetus | Destroyed Cetus Guard 16143 | -5/Cetus | Destroyed Cetus Guard 16154 | -5/Cetus | Destroyed Cetus Guard 16212 | -5/Cetus | Discovered exit to Factory (range 17) 16303 | -5/Cetus | Enhanced Grunt warped into view, answering call for help 16306 | -5/Cetus | Escorted A7 to Cetus Mainframe 16309 | -5/Cetus | Enhanced Grunt warped into view, answering call for help 16387 | -5/Cetus | Discovered new exit (range 16) 16402 | -5/Cetus | Identified exit to Archives 16421 | -5/Cetus | Entered Archives 16421 | -5/Archives | Accompanied by 11 allies (A7) 16426 | -5/Archives | Received a hacking code to weaken MAIN.C 16454 | -5/Archives | Discovered new exit (range 17) 16473 | -5/Archives | Identified exit to Hub_04(d) 16477 | -5/Archives | Lost 4 allies 16486 | -5/Archives | Entered Hub_04(d) 16486 | -5/Hub_04(d) | Accompanied by 6 allies 16694 | -5/Hub_04(d) | Reached level 24 16839 | -5/Hub_04(d) | Network Hub disabled 16846 | -5/Hub_04(d) | Network Hub disabled 16919 | -5/Hub_04(d) | Entered Factory 16919 | -4/Factory | Accompanied by 3 allies 17234 | -4/Factory | Discovered new exit (range 7) 17276 | -4/Factory | Identified exit to Upper Caves 17310 | -4/Factory | Reached level 25 17494 | -4/Factory | Found Prototype Device 17494 | -4/Factory | Identified Exp. Thermal Shield 17583 | -4/Factory | Upgraded with Propulsion slot (x1) 18102 | -4/Factory | Discovered exit to Upper Caves (range 13) 18105 | -4/Factory | Build established: Hacker-Ninja 18260 | -4/Factory | Entered Upper Caves 18441 | -4/Upper Caves | Learned Research trap positions 18495 | -4/Upper Caves | Discovered new exit (range 17) 18501 | -4/Upper Caves | Encountered a Warlord checkpoint 18502 | -4/Upper Caves | Identified exit to Upper Caves 18709 | -4/Upper Caves | Entered another Upper Caves area 18842 | -4/Upper Caves | Learned Research trap positions 18844 | -4/Upper Caves | Attracted the attention of an 0b10 checkpoint 18976 | -4/Upper Caves | Discovered new exit (range 6) 18978 | -4/Upper Caves | Identified exit to Zhirov 18978 | -4/Upper Caves | Entered Zhirov 18978 | -4/Zhirov | Discovered new exit (range 3) 18979 | -4/Zhirov | Identified exit to Proximity Caves 18986 | -4/Zhirov | Met Zhirov 19001 | -4/Zhirov | Zhirov requested help retrieving the SGEMP Prototype 19020 | -4/Zhirov | Found Alien Artifact 19020 | -4/Zhirov | Identified Integrated Dissipator 19020 | -4/Zhirov | Installed Integrated Dissipator, increased core heat dissipation (+20) 19081 | -4/Zhirov | Entered Proximity Caves 19083 | -3/Proximity Caves | Reached level 26 19086 | -3/Proximity Caves | Build established: Hacker-Gladiator 19157 | -3/Proximity Caves | Attracted the attention of an 0b10 outpost 19187 | -3/Proximity Caves | Discovered new exit (range 4) 19188 | -3/Proximity Caves | Identified exit to Research 19251 | -3/Proximity Caves | Entered Research 19251 | -3/Research | Accompanied by 2 allies 19252 | -3/Research | Loaded intel: 95 trap records 19253 | -3/Research | Reached level 27 19413 | -3/Research | Identified exit to Armory 19413 | -3/Research | Identified exit to Quarantine 19456 | -3/Research | Found Prototype Device 19456 | -3/Research | Identified Adv. Kinecellerator 19499 | -3/Research | Spotted B-86 Titan 19517 | -3/Research | Destroyed B-86 Titan 19750 | -3/Research | Discovered new exit (range 4) 19751 | -3/Research | Identified exit to Research 19772 | -3/Research | Entered another Research area 19773 | -2/Research | Loaded intel: 78 trap records 19774 | -2/Research | Reached level 28 19774 | -2/Research | Reached level 29 19946 | -2/Research | Found Exp. Core Analyzer 20179 | -2/Research | Found Fusion Bomb Launcher 20343 | -2/Research | Discovered new exit (range 4) 20344 | -2/Research | Identified exit to Testing 20491 | -2/Research | Found Adv. Force Booster 20577 | -2/Research | Reached level 30 20639 | -2/Research | Found Prototype Reactor 20639 | -2/Research | Identified Vortex Chain Reactor 20649 | -2/Research | Upgraded with Utility slot (x1) 20736 | -2/Research | Discovered new exit (range 8) 20748 | -2/Research | Identified exit to Access 20878 | -2/Research | Entered Access 20880 | -1/Access | Reached level 31 20914 | -1/Access | Spotted B-99 Colossus 20954 | -1/Access | Energy Cycler disabled 20974 | -1/Access | Identified exit to Command 21273 | -1/Access | Build established: Wizard-Gladiator 21633 | -1/Access | Reached level 32 21633 | -1/Access | Destroyed B-99 Colossus 21964 | -1/Access | Identified exit to Surface 21984 | -1/Access | Found Prototype Processor 21984 | -1/Access | Identified Exp. Terrain Scan Processor 22012 | -1/Access | Upgraded with Power slot (x1) 22374 | -1/Access | Repaired Imp. Powered Armor 22424 | -1/Access | Reached level 33 22983 | -1/Access | Core integrity fell below 50% 23776 | -1/Access | Reached level 34 23809 | *** | Escaped! Last Messages --------------- 23659_ ALERT: Hostiles spotted, dispatching reinforcements to Terminal A006. 23679_ K-01 Serf cleans the Terminal. 23717_ K-01 Serf cleans the Spectral Interrupter. 23720_ >> DECODED: Patrol location. 23728_ ALERT: Rogue bot located, Programmers report to Access Zone 5R. 23755_ P-80 Master Gamma Rifle severed. 23758_ P-80 Master destroyed. 23761_ Acquired 20 matter. 23776_ Destroyed Imp. Antigrav System. 23776_ Enh. Force Lance follow-up attack on P-80 Master. 23776_ Vibroblade follow-up attack on P-80 Master. 23776_ Reached level 34. 23776_ P-80 Master destroyed. 23780_ Upgraded: Hack Attack % (+5) 23780_ Upgraded: Sight Range (+1) 23780_ Upgraded: Sensor Range (+2) 23783_ Acquired 10 matter. 23801_ Connecting with Terminal... 23804_ The Access Shell folds into the floor. Map ----- +----------------------------------------------------+ | + ###########???????????????????????????????? | | # # #???????????????????????????????? | | # # #???????????????????????????????? | | ?# # #???????????????????????????????? | | *??# # #???????????????????????????????? | | ???# # #???????????????????????????????? | | u??# # #???????????????????????????????? | | ????# + #???????????????????????????????? | | ????# # #???????????????????????????????? | | ????# ###########???????????????????????????????? | | ????# ###############################???????????? | | ????# ?????????? | | ????# |%% ???????????? | | ????###########+##### ""#?????????????????? | | ?????+ """S"""[!*#?# ""#?????????????????? | | ?????# """ """%% #?# ""#?????????????????? | | ?????# !| #?# T#?????????????????? | | ?????# #?# ""#?????????????????? | | ?????# #?# ""#?????????????????? | | ?????# """"" ### ""##????????????????? | | ?????# """"" ## #????????????????? | | ???? / """"" ### ##????????????????? | | ?? ## """"" #?# #?????????????????? | | ? ??# ??"""" #?# #?????????????????? | | ?????# ????? #?# #?????????????????? | | ?????????????? #?# @" #?????????????????? | | ?????????????######?# "" #?????????????????? | | ?u??????????????????# #?????????????????? | | ?A??????????????????# #?????????????????? | | ????????????????????# #?????????????????? | | ???A????????????????#""""""""""#?????????????????? | | ?w????g??????????????????????????????????????????? | | ?????????????????????????????????????????????????? | | ?????????????????????????????????????????????????? | | ?????????????????????????????????????????????????? | | ??????????????????????BB????BB???????????????????? | | ??????????????????????BB????BB???????????????????? | | ?????????????????????????????????????????????????? | | ?????????????????????????????????????????????????? | | ?????????????????????????????????????????????????? | | ?????????????????????????????????????????????????? | | ?????????????????????????????????????????????????? | | ?????????????????????????????????????????????????? | | ?????????????????????????????????????????????????? | | ?????????????????????????????????????????????????? | | ?????????????????????????????????????????????????? | | ?????????????????????????????????????????????????? | | ???????????????????????????????????????????o?????? | | ?????????????????????????????????????????????????? | | ?????????????????????????????????????????????????? | +----------------------------------------------------+ Best States ------------- Heat Dissipation 93 Coolant Potential 120 Energy Generation 70 Energy Capacity 850 Matter Stores 300 Matter Capacity 300 Sight Range 18 Robot Scan Range 30 Terrain Scan Range 20 Terrain Scan Density 110 Jamming Range 16 EM Shielding 2 Armor Coverage 625 Resistance: KI 40 Resistance: TH 40 Resistance: EX 20 Resistance: EM 40 Resistance: I 20 Resistance: S 20 Resistance: P 20 Weapon Cycling 15 Melee Speed Boost 30 Phase Shifting 15 Evasion (%) 68 Target Analysis 8 Core Analysis 8 Armor Integrity Analysis 50 Recoil Reduction 2 Matter Filtering 50 Force Boost 40 Offensive Hacking 35 Defensive Hacking 31 Item Schematics ----------------- Combat Drone Bay | -7/Data Miner | Free Lgt. Regenerative Plating | -7/Data Miner | Free Cld. Aerolev Unit | -7/Data Miner | Free Gravity Neutralizer | -7/Data Miner | Free Cld. Plasma Cannon | -7/Data Miner | Free Arm. Medium Treads | -7/Data Miner | Free Imp. Focal Shield | -7/Data Miner | Free Lrn. Proton Cannon | -7/Data Miner | Free Imp. Target Analyzer | -7/Data Miner | Free Imp. Component Analysis Suite | -7/Data Miner | Free Mni. Drone Bay | -7/Data Miner | Free Micro-nuke Launcher | -7/Data Miner | Free Dispersion Rifle | -7/Data Miner | Free Imp. Launcher Guidance Computer | -6/Zion | Archive Matter Compressor | -6/Zion | Archive Adv. Shield Generator | -6/Zion | Archive Flexi-carbon Leg | -6/Zion | Archive Tesla Rifle | -6/Zion | Archive Focal Shield | -6/Zion | Archive Imp. Recalibrator | -6/Zion | Archive Hvy. Flak Cannon | -6/Zion | Archive Adv. Reaction Control System | -6/Zion | Archive Antimatter Reactor | -6/Zion | Archive Phase Cannon | -6/Zion | Archive Imp. KE Penetrator | -6/Zion | Archive Imp. Coolant Injector | -6/Zion | Archive Energy Well | -6/Zion | Archive Cmb. Gravmag System | -5/Extension | Hacked Assault Drone Bay | -4/Zhirov | Free Exp. Heat Sink | -4/Zhirov | Free Exp. Optical Array | -4/Zhirov | Free Imp. Arc Thrower | -4/Zhirov | Free Imp. Quantum Reactor | -2/Research | Hacked Robot Schematics ------------------ A-15 Conveyor | -7/Data Miner | Free B-48 Gladiator | -7/Data Miner | Free M-14 Sweeper | -7/Data Miner | Free R-10 Processor | -7/Data Miner | Free G-50 Soldier | -7/Data Miner | Free Y-64 Sentinel | -7/Data Miner | Free B-60 Warrior | -7/Data Miner | Free K-01 Serf | -6/Zion | Archive M-22 Extractor | -6/Zion | Archive R-06 Scavenger | -6/Zion | Archive Fabricated ------------ Power Sword | x2 | -6/Factory | Preloaded Centrium Greatsword | x1 | -6/Factory | Preloaded Alien Tech Used ----------------- Integrated Dissipator Achievements -------------- None Challenges ------------ None RPGLIKE | -11 -10 -10 -10 -9 -8 -7 -7 -7 -7 -6 -6 -6 -6 -6 -5 -5 -5 -5 -5 -5 -4 -4 -4 -4 -3 -3 -2 -1 --------- Run | Yrd Mat Min Exi Min Mat Fac Low Low Dat Pro Fac Low Low Zio Pro Fac Ext Cet Arc Hub Fac Upp Upp Zhi Pro Res Res Acc Levels Raised 33 | . . . 1 1 5 4 . 1 1 1 2 . 1 . 2 1 2 . . 1 1 . . . 1 1 3 4 XP Earned 53520 | 4000 730 500 552 1816 8026 4918 1400 1350 604 1956 2942 349 682 316 2542 2453 2414 310 286 685 1610 319 418 220 1069 1995 3459 5599 XP Spent 53385 | 3650 . . 500 2150 7660 6490 50 1500 . 1900 4085 . . 1495 2900 1610 1495 1350 . . 3110 . . . 1300 1750 4300 6090 Upgrades 82 | 6 . . 1 2 9 16 1 1 . 2 10 . . 2 1 4 5 2 . . 6 . . . 2 1 2 9 Power Slot 2 | . . . . . . . . . . . 1 . . . . . . . . . . . . . . . . 1 Propulsion Slot 5 | 1 . . . . . . . . . 2 . . . . . 1 . . . . 1 . . . . . . . Utility Slot 10 | 3 . . . 1 3 1 . . . . . . . . 1 . . . . . . . . . . . 1 . Weapon Slot 4 | 1 . . . . . 1 . . . . 1 . . 1 . . . . . . . . . . . . . . Core Integrity 10 | . . . . . 2 3 . . . . 2 . . 1 . . 1 . . . . . . . . . . 1 Heat Dissipation 8 | . . . . . . . . . . . . . . . . 3 2 . . . 3 . . . . . . . Energy Generation 1 | . . . . . 1 . . . . . . . . . . . . . . . . . . . . . . . Mass Support 4 | . . . . . 1 . . . . . . . . . . . . 1 . . . . . . . . 1 1 Inventory Capacity 7 | 1 . . 1 1 1 1 . 1 . . . . . . . . . . . . . . . . . 1 . . Sight Range 2 | . . . . . . 1 . . . . . . . . . . . . . . . . . . . . . 1 Sensor Range 6 | . . . . . . 3 . . . . 1 . . . . . . . . . 1 . . . . . . 1 Terrain Scan Density 1 | . . . . . . . 1 . . . . . . . . . . . . . . . . . . . . . Melee Accuracy 6 | . . . . . 1 1 . . . . 1 . . . . . . . . . . . . . 1 . . 2 Hack Attack % 5 | . . . . . . 1 . . . . 1 . . . . . 1 . . . . . . . . . . 2 Hack Defense % 3 | . . . . . . 1 . . . . 1 . . . . . . . . . . . . . 1 . . . KI Resistance % 4 | . . . . . . 2 . . . . 1 . . . . . . 1 . . . . . . . . . . TH Resistance % 4 | . . . . . . 1 . . . . 1 . . . . . 1 . . . 1 . . . . . . . Protomatter Created 5104 | . 13 . . 38 321 518 179 107 . 187 247 . 88 . 137 385 597 190 . 102 217 41 339 181 . 82 332 803 Integrity Restored 9284 | . . . . 243 770 877 376 206 . 534 342 . 177 138 324 640 787 209 . 229 154 63 382 . . 187 462 2184 Core 6916 | . . . . 223 559 582 227 128 . 534 142 . 170 . 152 449 521 155 . 184 90 63 265 . . 130 269 2073 Parts 2368 | . . . . 20 211 295 149 78 . . 200 . 7 138 172 191 266 54 . 45 64 . 117 . . 57 193 111 Protomatter Decayed 3219 | . 13 . . . 244 164 50 31 . . 188 . 28 9 41 148 725 118 127 91 414 . 267 74 65 87 335 . Game ------ Seed JunkLegAutobeam Manual? 0 Play Time 04:49:01 Cumulative 210.4 hours Start 2024.10.05 @ 17:14:49 End 2024.10.06 @ 09:15:29 Sessions 3 Manual Loads 0 Difficulty Adventurer Special Mode Winter2019/RPGLIKE Game No. 71 Rogue 28 Adventurer 43 Explorer 0 Win Type 0 Total 12 Types 10/0/2/0/0/0/0/0/0 Lore% 47 Gallery% 67 Achievement% 64 Wizard Run 0 Options --------- Layout 0 ASCII 0 Keyboard 1 Movement Vi Keybinds 0 Fullscreen 2 Font 18/SmallcapsGlow Map View 76x50 Zoom Use 0% Tactical HUD 1 Map Filters NONE Filters NONE Steam X RUN: 43f1f559-7a0b-45b9-b542-11fe4aafe062